[Event "Live Chess"]
[Site "Chess.com"]
[Date "2024.06.02"]
[Round "-"]
[White "friarnator"]
[Black "Ksenia_2013"]
[Result "1-0"]
[WhiteElo "2214"]
[BlackElo "969"]
[TimeControl "300"]
[EndTime "5:48:25 PDT"]
[Termination "friarnator won by checkmate"]

1. d4 {[%clk 0:04:58.7]} 1... d5 {[%clk 0:04:56.1]} 2. Nc3 {[%clk 0:04:57.7]}
2... Nf6 {[%clk 0:04:54.4]} 3. Bf4 {[%clk 0:04:57.2]} 3... g6 {[%clk 0:04:52.1]}
4. Qd2 {[%clk 0:04:55.3]} 4... Bf5 {[%clk 0:04:48.7]} 5. O-O-O {[%clk
0:04:53.5]} 5... Bg7 {[%clk 0:04:41]} 6. f3 {[%clk 0:04:52.1]} 6... O-O {[%clk
0:04:39.4]} 7. Bh6 {[%clk 0:04:49.9]} 7... Bxh6 {[%clk 0:04:35.3]} 8. Qxh6
{[%clk 0:04:49.8]} 8... Qd7 {[%clk 0:04:23.1]} 9. g4 {[%clk 0:04:47.9]} 9...
Bxc2 {[%clk 0:04:14.7]} 10. Kxc2 {[%clk 0:04:45.1]} 10... Nc6 {[%clk 0:04:11.3]}
11. h4 {[%clk 0:04:43.1]} 11... Nb4+ {[%clk 0:04:08.8]} 12. Kb1 {[%clk
0:04:41.7]} 12... Qc6 {[%clk 0:04:04.9]} 13. h5 {[%clk 0:04:39.5]} 13... gxh5
{[%clk 0:04:02.1]} 14. g5 {[%clk 0:04:37.1]} 14... Ne8 {[%clk 0:03:53.4]} 15.
Rxh5 {[%clk 0:04:34]} 15... Qc4 {[%clk 0:03:48.8]} 16. Qxh7# {[%clk 0:04:32.1]}
1-0

[Event "Live Chess"]
[Site "Chess.com"]
[Date "2024.06.02"]
[Round "-"]
[White "ACM42"]
[Black "yarek"]
[Result "1-0"]
[WhiteElo "2226"]
[BlackElo "1759"]
[TimeControl "300"]
[EndTime "5:48:32 PDT"]
[Termination "ACM42 won on time"]

1. e4 {[%clk 0:04:58]} 1... g6 {[%clk 0:04:59.3]} 2. d4 {[%clk 0:04:56.6]} 2...
Bg7 {[%clk 0:04:58.9]} 3. Nc3 {[%clk 0:04:56]} 3... c6 {[%clk 0:04:58.4]} 4. Nf3
{[%clk 0:04:50.2]} 4... d5 {[%clk 0:04:56.9]} 5. e5 {[%clk 0:04:43.9]} 5... Bg4
{[%clk 0:04:54.6]} 6. h3 {[%clk 0:04:42]} 6... Bxf3 {[%clk 0:04:53]} 7. Qxf3
{[%clk 0:04:41.3]} 7... e6 {[%clk 0:04:52.6]} 8. b4 {[%clk 0:04:30.1]} 8... Qb6
{[%clk 0:04:43.6]} 9. Qd3 {[%clk 0:04:15.7]} 9... Qxb4 {[%clk 0:04:37.3]} 10.
Rb1 {[%clk 0:04:12.4]} 10... Qe7 {[%clk 0:04:32.8]} 11. Na4 {[%clk 0:04:05.2]}
11... b6 {[%clk 0:04:29.4]} 12. f4 {[%clk 0:03:54.4]} 12... Nh6 {[%clk
0:04:12.5]} 13. g4 {[%clk 0:03:53.1]} 13... O-O {[%clk 0:04:06.7]} 14. Ba3
{[%clk 0:03:51.9]} 14... Qh4+ {[%clk 0:04:03.5]} 15. Ke2 {[%clk 0:03:43.8]}
15... Nxg4 {[%clk 0:03:50]} 16. Qf3 {[%clk 0:03:33.8]} 16... Nh6 {[%clk
0:03:25.3]} 17. Rg1 {[%clk 0:02:30.9]} 17... Nf5 {[%clk 0:03:21.2]} 18. c3
{[%clk 0:02:27.4]} 18... Rc8 {[%clk 0:03:03.6]} 19. Rg4 {[%clk 0:02:03.1]} 19...
Qh6 {[%clk 0:03:00.9]} 20. Kf2 {[%clk 0:01:39.2]} 20... Nd7 {[%clk 0:02:51.5]}
21. c4 {[%clk 0:01:35.8]} 21... Nxd4 {[%clk 0:02:42.6]} 22. Qd1 {[%clk 0:01:25]}
22... c5 {[%clk 0:02:36.8]} 23. Bg2 {[%clk 0:01:17]} 23... Bf8 {[%clk
0:02:29.8]} 24. cxd5 {[%clk 0:00:58.5]} 24... exd5 {[%clk 0:02:26.4]} 25. Nc3
{[%clk 0:00:57.8]} 25... Rab8 {[%clk 0:01:56.8]} 26. Nxd5 {[%clk 0:00:56]} 26...
b5 {[%clk 0:01:47.3]} 27. Bc1 {[%clk 0:00:54.2]} 27... Qg7 {[%clk 0:01:42.3]}
28. Kg1 {[%clk 0:00:41.8]} 28... h5 {[%clk 0:01:30.2]} 29. Rg3 {[%clk
0:00:34.7]} 29... Nf5 {[%clk 0:01:28.4]} 30. Rg5 {[%clk 0:00:24.5]} 30... c4
{[%clk 0:01:04.9]} 31. Bb2 {[%clk 0:00:21.3]} 31... Nc5 {[%clk 0:00:55]} 32. e6
{[%clk 0:00:14.5]} 32... Qh6 {[%clk 0:00:47]} 33. exf7+ {[%clk 0:00:13.6]} 33...
Kxf7 {[%clk 0:00:42.8]} 34. Qe1 {[%clk 0:00:12.1]} 34... Rc6 {[%clk 0:00:36.2]}
35. Qe5 {[%clk 0:00:09.9]} 35... Re8 {[%clk 0:00:30]} 36. Rxf5+ {[%clk 0:00:09]}
36... Kg8 {[%clk 0:00:27.5]} 37. Qxe8 {[%clk 0:00:07.4]} 37... gxf5 {[%clk
0:00:23.3]} 38. Ne7+ {[%clk 0:00:06.1]} 38... Kh7 {[%clk 0:00:19.7]} 39. Qf7+
{[%clk 0:00:04.9]} 39... Bg7 {[%clk 0:00:16.2]} 40. Nxc6 {[%clk 0:00:04.4]}
40... Nd3 {[%clk 0:00:11.4]} 41. Bxg7 {[%clk 0:00:03.6]} 41... Qxg7 {[%clk
0:00:09.2]} 42. Qxg7+ {[%clk 0:00:03.5]} 42... Kxg7 {[%clk 0:00:08.1]} 43. Rxb5
{[%clk 0:00:03.4]} 43... c3 {[%clk 0:00:06.4]} 44. Rb7+ {[%clk 0:00:03.3]} 44...
Kf6 {[%clk 0:00:04.7]} 45. Rxa7 {[%clk 0:00:03.2]} 45... c2 {[%clk 0:00:02.8]}
46. Nd4 {[%clk 0:00:03.1]} 46... c1=Q+ {[%clk 0:00:01.3]} 47. Kh2 {[%clk
0:00:03]} 1-0

[Event "Live Chess"]
[Site "Chess.com"]
[Date "2024.06.02"]
[Round "-"]
[White "CarmelJane"]
[Black "stevochess11"]
[Result "1-0"]
[WhiteElo "1991"]
[BlackElo "1680"]
[TimeControl "300"]
[EndTime "5:48:32 PDT"]
[Termination "CarmelJane won by resignation"]

1. e4 {[%clk 0:04:58.5]} 1... c5 {[%clk 0:04:59.4]} 2. Nf3 {[%clk 0:04:56]} 2...
g6 {[%clk 0:04:58.4]} 3. c3 {[%clk 0:04:53.2]} 3... Nc6 {[%clk 0:04:57.4]} 4. d4
{[%clk 0:04:41.5]} 4... cxd4 {[%clk 0:04:54.5]} 5. cxd4 {[%clk 0:04:41.4]} 5...
d6 {[%clk 0:04:52.7]} 6. Nc3 {[%clk 0:04:37.7]} 6... Bg7 {[%clk 0:04:51.6]} 7.
Bb5 {[%clk 0:04:35.1]} 7... a6 {[%clk 0:04:46.5]} 8. Bxc6+ {[%clk 0:04:14.6]}
8... bxc6 {[%clk 0:04:45.4]} 9. h3 {[%clk 0:04:14.2]} 9... Nf6 {[%clk
0:04:42.7]} 10. O-O {[%clk 0:04:13.4]} 10... O-O {[%clk 0:04:41.5]} 11. Bg5
{[%clk 0:04:10.3]} 11... h6 {[%clk 0:04:36.5]} 12. Bf4 {[%clk 0:04:08.9]} 12...
Rb8 {[%clk 0:04:33.4]} 13. Qd2 {[%clk 0:04:08.3]} 13... Kh7 {[%clk 0:04:31.5]}
14. Rac1 {[%clk 0:04:06.2]} 14... Ng8 {[%clk 0:04:21.7]} 15. Ne2 {[%clk
0:03:56.6]} 15... Qb6 {[%clk 0:04:19]} 16. b3 {[%clk 0:03:52]} 16... f5 {[%clk
0:04:15.1]} 17. e5 {[%clk 0:03:48.1]} 17... d5 {[%clk 0:04:02.3]} 18. Nc3 {[%clk
0:03:44.6]} 18... e6 {[%clk 0:03:51.2]} 19. Na4 {[%clk 0:03:42.4]} 19... Qb4
{[%clk 0:03:48]} 20. Qxb4 {[%clk 0:03:34.7]} 20... Rxb4 {[%clk 0:03:46.7]} 21.
Rxc6 {[%clk 0:03:34.2]} 21... g5 {[%clk 0:03:34]} 22. Bd2 {[%clk 0:03:27.9]}
22... Bd7 {[%clk 0:03:26.4]} 23. Bxb4 {[%clk 0:03:25.7]} 23... Bxc6 {[%clk
0:03:25.3]} 24. Bxf8 {[%clk 0:03:24.6]} 24... Bxf8 {[%clk 0:03:25.2]} 25. Rc1
{[%clk 0:03:22.6]} 25... Bb5 {[%clk 0:03:23.2]} 26. Rc7+ {[%clk 0:03:16.3]}
26... Kg6 {[%clk 0:03:21.2]} 27. Nc5 {[%clk 0:03:15.8]} 27... Bxc5 {[%clk
0:03:15.3]} 28. dxc5 {[%clk 0:03:12.4]} 28... f4 {[%clk 0:03:11.9]} 29. Nd4
{[%clk 0:03:12]} 29... h5 {[%clk 0:03:01.9]} 30. Nxe6 {[%clk 0:03:10.9]} 30...
Kf5 {[%clk 0:03:00.5]} 31. Ng7+ {[%clk 0:03:08.3]} 31... Kxe5 {[%clk 0:02:58.5]}
32. a4 {[%clk 0:02:56.3]} 32... Bd3 {[%clk 0:02:53.3]} 33. Nxh5 {[%clk
0:02:51.3]} 33... Nh6 {[%clk 0:02:49.4]} 34. Re7+ {[%clk 0:02:44.9]} 34... Kd4
{[%clk 0:02:48.1]} 35. c6 {[%clk 0:02:43.9]} 35... Nf5 {[%clk 0:02:45.4]} 36.
Rd7 {[%clk 0:02:36.1]} 36... Kc5 {[%clk 0:02:43.2]} 37. c7 {[%clk 0:02:34.8]}
37... Nd6 {[%clk 0:02:41.3]} 38. Rxd6 {[%clk 0:02:33.6]} 38... Kxd6 {[%clk
0:02:40.6]} 39. c8=Q {[%clk 0:02:33.5]} 1-0

[Event "Live Chess"]
[Site "Chess.com"]
[Date "2024.06.02"]
[Round "-"]
[White "bobby_jamesFischer86"]
[Black "booktrunk"]
[Result "1-0"]
[WhiteElo "1634"]
[BlackElo "1494"]
[TimeControl "300"]
[EndTime "5:49:11 PDT"]
[Termination "bobby_jamesFischer86 won by resignation"]

1. d4 {[%clk 0:04:57.5]} 1... b6 {[%clk 0:04:57]} 2. e4 {[%clk 0:04:56]} 2...
Bb7 {[%clk 0:04:55.9]} 3. Bd3 {[%clk 0:04:53.3]} 3... e6 {[%clk 0:04:55.1]} 4.
c4 {[%clk 0:04:52.6]} 4... h6 {[%clk 0:04:45.7]} 5. Nc3 {[%clk 0:04:51]} 5...
Be7 {[%clk 0:04:33.9]} 6. d5 {[%clk 0:04:49.3]} 6... exd5 {[%clk 0:04:31.8]} 7.
cxd5 {[%clk 0:04:48.1]} 7... Bb4 {[%clk 0:04:30]} 8. Bd2 {[%clk 0:04:46.1]} 8...
Nf6 {[%clk 0:04:28.4]} 9. a3 {[%clk 0:04:44.6]} 9... Be7 {[%clk 0:04:23.9]} 10.
Nf3 {[%clk 0:04:41.6]} 10... O-O {[%clk 0:04:22.6]} 11. O-O {[%clk 0:04:39.2]}
11... c6 {[%clk 0:04:13.7]} 12. dxc6 {[%clk 0:04:36.7]} 12... Bxc6 {[%clk
0:04:11.3]} 13. Re1 {[%clk 0:04:34.7]} 13... Nh7 {[%clk 0:04:06.1]} 14. b4
{[%clk 0:04:29]} 14... Qc8 {[%clk 0:04:01]} 15. Rc1 {[%clk 0:04:27.7]} 15... Bd8
{[%clk 0:03:57.5]} 16. Nd5 {[%clk 0:04:15.9]} 16... Bxd5 {[%clk 0:03:46.5]} 17.
Rxc8 {[%clk 0:04:12.5]} 1-0

[Event "Live Chess"]
[Site "Chess.com"]
[Date "2024.06.02"]
[Round "-"]
[White "SavagePawn7"]
[Black "Tatarinov_Maxim"]
[Result "0-1"]
[WhiteElo "678"]
[BlackElo "2289"]
[TimeControl "300"]
[EndTime "5:49:12 PDT"]
[Termination "Tatarinov_Maxim won on time"]

1. e4 {[%clk 0:04:50.5]} 1... d5 {[%clk 0:04:58.7]} 2. exd5 {[%clk 0:04:44.4]}
2... Nf6 {[%clk 0:04:57.3]} 3. Bc4 {[%clk 0:04:33.8]} 3... Nxd5 {[%clk
0:04:52.1]} 4. Qf3 {[%clk 0:04:30]} 4... c6 {[%clk 0:04:43.3]} 5. Nc3 {[%clk
0:04:26.4]} 5... e6 {[%clk 0:04:38.8]} 6. Nxd5 {[%clk 0:04:20.4]} 6... cxd5
{[%clk 0:04:37]} 7. Bb5+ {[%clk 0:04:14.7]} 7... Bd7 {[%clk 0:04:36]} 8. Bxd7+
{[%clk 0:04:11.7]} 8... Qxd7 {[%clk 0:04:35.4]} 9. Ne2 {[%clk 0:04:04.5]} 9...
Be7 {[%clk 0:04:31]} 10. d4 {[%clk 0:03:59.4]} 10... O-O {[%clk 0:04:29.9]} 11.
Bd2 {[%clk 0:03:46.4]} 11... Nc6 {[%clk 0:04:28]} 12. O-O-O {[%clk 0:03:39.6]}
12... Rfc8 {[%clk 0:04:23.9]} 13. h4 {[%clk 0:03:33.9]} 13... Bf6 {[%clk
0:04:21.6]} 14. c3 {[%clk 0:03:22.6]} 14... Nxd4 {[%clk 0:04:13.7]} 15. Nxd4
{[%clk 0:03:18.6]} 15... Bxd4 {[%clk 0:04:13.1]} 16. h5 {[%clk 0:03:10.4]} 16...
Be5 {[%clk 0:03:56.3]} 17. h6 {[%clk 0:02:48.7]} 17... g6 {[%clk 0:03:53.5]} 18.
Rde1 {[%clk 0:02:37.9]} 18... Bh8 {[%clk 0:03:50.9]} 19. Bf4 {[%clk 0:02:17.9]}
19... b5 {[%clk 0:03:46.7]} 20. g4 {[%clk 0:02:11.2]} 20... b4 {[%clk
0:03:45.5]} 21. Be5 {[%clk 0:02:01.1]} 21... f5 {[%clk 0:03:07]} 22. Bxh8 {[%clk
0:01:54.8]} 22... Kxh8 {[%clk 0:03:06.9]} 23. gxf5 {[%clk 0:01:29.5]} 23... bxc3
{[%clk 0:02:58.2]} 24. bxc3 {[%clk 0:01:27]} 24... exf5 {[%clk 0:02:45.5]} 25.
Rd1 {[%clk 0:01:12.3]} 25... Rc5 {[%clk 0:02:11]} 26. Rd3 {[%clk 0:01:04.2]}
26... Rac8 {[%clk 0:02:09.2]} 27. Rhd1 {[%clk 0:00:58.4]} 27... Qe6 {[%clk
0:01:48]} 28. Rxd5 {[%clk 0:00:45.9]} 28... Rxc3+ {[%clk 0:01:45.5]} 29. Qxc3+
{[%clk 0:00:33.8]} 29... Rxc3+ {[%clk 0:01:44]} 30. Kb2 {[%clk 0:00:28]} 30...
Rc8 {[%clk 0:01:27.5]} 31. Rd8+ {[%clk 0:00:19.2]} 31... Rxd8 {[%clk 0:01:24]}
32. Rxd8+ {[%clk 0:00:17.7]} 32... Qg8 {[%clk 0:01:23.9]} 33. Rxg8+ {[%clk
0:00:16.1]} 33... Kxg8 {[%clk 0:01:23.6]} 34. Kc3 {[%clk 0:00:12]} 34... Kf7
{[%clk 0:01:22.1]} 35. a4 {[%clk 0:00:11]} 35... g5 {[%clk 0:01:21.4]} 36. Kc4
{[%clk 0:00:10]} 36... Ke6 {[%clk 0:01:19.4]} 37. Kc5 {[%clk 0:00:09.7]} 37...
g4 {[%clk 0:01:18.8]} 38. Kc6 {[%clk 0:00:08.7]} 38... f4 {[%clk 0:01:17.4]} 39.
a5 {[%clk 0:00:06.9]} 39... g3 {[%clk 0:01:16.7]} 40. fxg3 {[%clk 0:00:05.6]}
40... fxg3 {[%clk 0:01:15.9]} 41. a6 {[%clk 0:00:03.5]} 41... g2 {[%clk
0:01:14.3]} 42. Kb7 {[%clk 0:00:02]} 42... g1=Q {[%clk 0:01:13.2]} 0-1

[Event "Live Chess"]
[Site "Chess.com"]
[Date "2024.06.02"]
[Round "-"]
[White "davigator"]
[Black "vincents82"]
[Result "1-0"]
[WhiteElo "2347"]
[BlackElo "1991"]
[TimeControl "300"]
[EndTime "5:49:22 PDT"]
[Termination "davigator won by resignation"]

1. e4 {[%clk 0:04:57.8]} 1... d5 {[%clk 0:04:57.9]} 2. exd5 {[%clk 0:04:55.7]}
2... Qxd5 {[%clk 0:04:55.1]} 3. Nc3 {[%clk 0:04:53.2]} 3... Qd8 {[%clk
0:04:53.2]} 4. d4 {[%clk 0:04:50.4]} 4... Nf6 {[%clk 0:04:51.3]} 5. Nf3 {[%clk
0:04:47.4]} 5... Bg4 {[%clk 0:04:50.2]} 6. Bc4 {[%clk 0:04:46]} 6... e6 {[%clk
0:04:48.8]} 7. h3 {[%clk 0:04:44.5]} 7... Bxf3 {[%clk 0:04:47.7]} 8. Qxf3 {[%clk
0:04:43.6]} 8... c6 {[%clk 0:04:46.9]} 9. Be3 {[%clk 0:04:41.9]} 9... Nbd7
{[%clk 0:04:44.8]} 10. O-O-O {[%clk 0:04:40.7]} 10... Bb4 {[%clk 0:04:43.3]} 11.
Ne4 {[%clk 0:04:38.6]} 11... Nxe4 {[%clk 0:04:41.2]} 12. Qxe4 {[%clk 0:04:37.9]}
12... Nf6 {[%clk 0:04:40.2]} 13. Qf3 {[%clk 0:04:36.7]} 13... O-O {[%clk
0:04:24.2]} 14. c3 {[%clk 0:04:35.5]} 14... Be7 {[%clk 0:04:22.6]} 15. Rhe1
{[%clk 0:04:27.9]} 15... Nd5 {[%clk 0:04:20.8]} 16. Bd2 {[%clk 0:04:27.1]} 16...
b5 {[%clk 0:04:19.6]} 17. Bd3 {[%clk 0:04:25.2]} 17... Bg5 {[%clk 0:04:07.5]}
18. Qe4 {[%clk 0:04:23.6]} 18... Bxd2+ {[%clk 0:04:05]} 19. Rxd2 {[%clk
0:04:22.8]} 19... g6 {[%clk 0:04:02.8]} 20. f4 {[%clk 0:04:21.8]} 20... Qb6
{[%clk 0:04:00.7]} 21. g4 {[%clk 0:04:19.2]} 21... c5 {[%clk 0:03:58.4]} 22.
dxc5 {[%clk 0:04:18.3]} 22... Qxc5 {[%clk 0:03:57.5]} 23. Bc2 {[%clk 0:04:13.9]}
23... Rac8 {[%clk 0:03:40.7]} 24. f5 {[%clk 0:03:55]} 24... b4 {[%clk
0:03:26.8]} 25. fxe6 {[%clk 0:03:53.7]} 25... bxc3 {[%clk 0:03:25.5]} 26. Rxd5
{[%clk 0:03:52.4]} 26... cxb2+ {[%clk 0:03:23.9]} 27. Kb1 {[%clk 0:03:51.9]}
27... Qc3 {[%clk 0:03:16]} 28. exf7+ {[%clk 0:03:49]} 28... Rxf7 {[%clk
0:03:12.3]} 29. Red1 {[%clk 0:03:40.4]} 29... Re7 {[%clk 0:03:01.2]} 30. Qd3
{[%clk 0:03:37.2]} 30... Rec7 {[%clk 0:02:55.5]} 31. Qxc3 {[%clk 0:03:33.7]}
31... Rxc3 {[%clk 0:02:54.5]} 32. R1d2 {[%clk 0:03:33.4]} 1-0

[Event "Live Chess"]
[Site "Chess.com"]
[Date "2024.06.02"]
[Round "-"]
[White "PavelChernomordik"]
[Black "AlanBstard10"]
[Result "1-0"]
[WhiteElo "2498"]
[BlackElo "1228"]
[TimeControl "300"]
[EndTime "5:49:36 PDT"]
[Termination "PavelChernomordik won by checkmate"]

1. e4 {[%clk 0:04:58.6]} 1... c5 {[%clk 0:04:57.4]} 2. Nc3 {[%clk 0:04:56.8]}
2... a6 {[%clk 0:04:55.4]} 3. f4 {[%clk 0:04:55.1]} 3... d6 {[%clk 0:04:52.5]}
4. g3 {[%clk 0:04:54]} 4... Nf6 {[%clk 0:04:46.4]} 5. Bg2 {[%clk 0:04:52.9]}
5... Nbd7 {[%clk 0:04:40.9]} 6. Nf3 {[%clk 0:04:50.4]} 6... Rb8 {[%clk
0:04:39.2]} 7. e5 {[%clk 0:04:49.1]} 7... dxe5 {[%clk 0:04:37.8]} 8. fxe5 {[%clk
0:04:47.9]} 8... Ng8 {[%clk 0:04:25.2]} 9. d4 {[%clk 0:04:41.4]} 9... cxd4
{[%clk 0:04:23.2]} 10. Qxd4 {[%clk 0:04:40.1]} 10... e6 {[%clk 0:04:07.6]} 11.
Bf4 {[%clk 0:04:35.7]} 11... Bc5 {[%clk 0:04:00.7]} 12. Qd3 {[%clk 0:04:32.3]}
12... Ne7 {[%clk 0:03:57.2]} 13. Ne4 {[%clk 0:04:28.3]} 13... Ba7 {[%clk
0:03:45.1]} 14. Nd6+ {[%clk 0:04:26]} 14... Kf8 {[%clk 0:03:40.9]} 15. Ng5
{[%clk 0:04:24.9]} 15... Qb6 {[%clk 0:03:20.7]} 16. O-O-O {[%clk 0:04:18.1]}
16... Rg8 {[%clk 0:03:07.6]} 17. Nxh7# {[%clk 0:04:15.4]} 1-0

[Event "Live Chess"]
[Site "Chess.com"]
[Date "2024.06.02"]
[Round "-"]
[White "Ferrarifan27"]
[Black "FlyingChessKestrel13"]
[Result "0-1"]
[WhiteElo "2150"]
[BlackElo "2091"]
[TimeControl "300"]
[EndTime "5:49:45 PDT"]
[Termination "FlyingChessKestrel13 won by resignation"]

1. e4 {[%clk 0:04:57.4]} 1... e5 {[%clk 0:04:59]} 2. Nf3 {[%clk 0:04:48.4]} 2...
Nf6 {[%clk 0:04:54.6]} 3. Nxe5 {[%clk 0:04:46.7]} 3... d6 {[%clk 0:04:53.3]} 4.
Nf3 {[%clk 0:04:45.4]} 4... Nxe4 {[%clk 0:04:51.9]} 5. d4 {[%clk 0:04:43]} 5...
d5 {[%clk 0:04:50.9]} 6. Bd3 {[%clk 0:04:37.8]} 6... Be7 {[%clk 0:04:49.2]} 7.
O-O {[%clk 0:04:36.4]} 7... O-O {[%clk 0:04:48.1]} 8. Re1 {[%clk 0:04:34.6]}
8... Nf6 {[%clk 0:04:46.1]} 9. Nc3 {[%clk 0:04:31.9]} 9... Bg4 {[%clk
0:04:44.7]} 10. h3 {[%clk 0:04:29.9]} 10... Bh5 {[%clk 0:04:43.3]} 11. Bg5
{[%clk 0:04:27.9]} 11... Nbd7 {[%clk 0:04:40.2]} 12. Be2 {[%clk 0:04:10.6]}
12... c6 {[%clk 0:04:38.6]} 13. Qd2 {[%clk 0:04:05.8]} 13... Bg6 {[%clk
0:04:37]} 14. Rad1 {[%clk 0:04:01]} 14... Ne4 {[%clk 0:04:35.9]} 15. Nxe4 {[%clk
0:03:56.8]} 15... dxe4 {[%clk 0:04:33.9]} 16. Bxe7 {[%clk 0:03:54.8]} 16... Qxe7
{[%clk 0:04:31.9]} 17. Bc4 {[%clk 0:03:47.4]} 17... Qf6 {[%clk 0:04:27.7]} 18.
Ng5 {[%clk 0:03:42.4]} 18... Rae8 {[%clk 0:04:23.3]} 19. f4 {[%clk 0:03:31.5]}
19... h6 {[%clk 0:04:20]} 20. d5 {[%clk 0:03:16.7]} 20... Nb6 {[%clk 0:04:13.9]}
21. Bb3 {[%clk 0:03:00.2]} 21... hxg5 {[%clk 0:04:12.3]} 22. fxg5 {[%clk
0:02:59.1]} 22... Qd6 {[%clk 0:04:04]} 23. dxc6 {[%clk 0:02:56.4]} 23... Qxd2
{[%clk 0:04:02.5]} 24. Rxd2 {[%clk 0:02:55.1]} 24... bxc6 {[%clk 0:04:02]} 25.
Rd6 {[%clk 0:02:53.9]} 25... Bf5 {[%clk 0:03:54]} 26. Rxc6 {[%clk 0:02:51.5]}
26... e3 {[%clk 0:03:50]} 27. Rc3 {[%clk 0:02:46.1]} 27... Rc8 {[%clk
0:03:38.7]} 28. Rexe3 {[%clk 0:02:37.9]} 28... a5 {[%clk 0:03:35.4]} 29. Rxc8
{[%clk 0:02:34.1]} 29... Rxc8 {[%clk 0:03:33.8]} 30. c3 {[%clk 0:02:24]} 30...
a4 {[%clk 0:03:32.6]} 31. Bd1 {[%clk 0:02:22.2]} 31... Nc4 {[%clk 0:03:28.4]}
32. Re2 {[%clk 0:02:13.2]} 32... a3 {[%clk 0:03:26.2]} 33. bxa3 {[%clk
0:02:10.8]} 33... Nxa3 {[%clk 0:03:23.1]} 34. Bb3 {[%clk 0:02:08]} 34... Bg6
{[%clk 0:02:57.4]} 35. Re3 {[%clk 0:01:59.5]} 35... Nc4 {[%clk 0:02:55]} 36. Re7
{[%clk 0:01:56.6]} 36... Nd2 {[%clk 0:02:49.9]} 37. c4 {[%clk 0:01:52.1]} 37...
Nxb3 {[%clk 0:02:48.2]} 38. axb3 {[%clk 0:01:50.2]} 38... Rb8 {[%clk 0:02:47.6]}
39. Re3 {[%clk 0:01:46.9]} 39... Bc2 {[%clk 0:02:45.8]} 40. Rc3 {[%clk
0:01:42.2]} 40... Bxb3 {[%clk 0:02:43.2]} 41. c5 {[%clk 0:01:41.4]} 41... Be6
{[%clk 0:02:41.3]} 42. Kf2 {[%clk 0:01:37.9]} 42... Kf8 {[%clk 0:02:40.5]} 43.
Ke3 {[%clk 0:01:36.1]} 43... Ke7 {[%clk 0:02:40.1]} 44. Kd4 {[%clk 0:01:35.2]}
44... g6 {[%clk 0:02:38.8]} 45. Ke5 {[%clk 0:01:33.5]} 45... Kd7 {[%clk
0:02:36]} 46. c6+ {[%clk 0:01:30.5]} 46... Kc7 {[%clk 0:02:35]} 47. g4 {[%clk
0:01:18.1]} 47... Rb6 {[%clk 0:02:33.6]} 48. Kf4 {[%clk 0:01:14.8]} 48... Rxc6
{[%clk 0:02:32.6]} 49. Ra3 {[%clk 0:01:12.3]} 49... Rc4+ {[%clk 0:02:31.4]} 50.
Kg3 {[%clk 0:01:10.8]} 50... Kd6 {[%clk 0:02:30.5]} 51. Re3 {[%clk 0:01:07.1]}
51... Kd5 {[%clk 0:02:27.3]} 52. Rd3+ {[%clk 0:01:05.5]} 52... Ke4 {[%clk
0:02:23.8]} 53. Ra3 {[%clk 0:01:03.9]} 53... Kd4 {[%clk 0:02:20]} 54. Ra7 {[%clk
0:00:58.8]} 54... Ke4 {[%clk 0:02:12.2]} 55. Rb7 {[%clk 0:00:55.3]} 55... Rc3+
{[%clk 0:02:09.9]} 56. Kh4 {[%clk 0:00:54.3]} 56... Kf3 {[%clk 0:02:00.7]} 57.
Rb3 {[%clk 0:00:47.2]} 57... Re3 {[%clk 0:01:48.6]} 58. Rb2 {[%clk 0:00:37.3]}
58... Ke4 {[%clk 0:01:42]} 59. Rf2 {[%clk 0:00:31.2]} 59... Re1 {[%clk
0:01:38.9]} 60. Rb2 {[%clk 0:00:24.7]} 60... Rh1 {[%clk 0:01:34.5]} 61. Rb4+
{[%clk 0:00:23.1]} 61... Ke3 {[%clk 0:01:31.1]} 62. Rb6 {[%clk 0:00:19.8]} 62...
Kf2 {[%clk 0:01:29.6]} 63. Rxe6 {[%clk 0:00:17.5]} 63... Rxh3+ {[%clk
0:01:22.7]} 64. Kxh3 {[%clk 0:00:16.5]} 64... fxe6 {[%clk 0:01:22.3]} 65. Kh4
{[%clk 0:00:14.9]} 65... e5 {[%clk 0:01:21.2]} 0-1

[Event "Live Chess"]
[Site "Chess.com"]
[Date "2024.06.02"]
[Round "-"]
[White "Queensandpawns"]
[Black "NeilDruggan73"]
[Result "1-0"]
[WhiteElo "2279"]
[BlackElo "1710"]
[TimeControl "300"]
[EndTime "5:49:50 PDT"]
[Termination "Queensandpawns won by checkmate"]

1. e4 {[%clk 0:04:59.1]} 1... d6 {[%clk 0:04:58.2]} 2. Nc3 {[%clk 0:04:56.2]}
2... Nf6 {[%clk 0:04:56.9]} 3. d4 {[%clk 0:04:53.4]} 3... g6 {[%clk 0:04:54.4]}
4. Be3 {[%clk 0:04:52]} 4... Bg7 {[%clk 0:04:53.3]} 5. Qd2 {[%clk 0:04:51.9]}
5... h6 {[%clk 0:04:50.6]} 6. O-O-O {[%clk 0:04:51.4]} 6... c6 {[%clk
0:04:47.5]} 7. h4 {[%clk 0:04:48.8]} 7... h5 {[%clk 0:04:32.5]} 8. f3 {[%clk
0:04:46.8]} 8... b5 {[%clk 0:04:30.5]} 9. Qf2 {[%clk 0:04:42.2]} 9... Qa5 {[%clk
0:04:26.6]} 10. e5 {[%clk 0:04:40]} 10... Nd5 {[%clk 0:04:15.8]} 11. Nxd5 {[%clk
0:04:36.8]} 11... cxd5 {[%clk 0:04:13.7]} 12. Kb1 {[%clk 0:04:36.1]} 12... O-O
{[%clk 0:03:58]} 13. exd6 {[%clk 0:04:29.6]} 13... exd6 {[%clk 0:03:51.9]} 14.
Bd3 {[%clk 0:04:29.5]} 14... Nc6 {[%clk 0:03:44.5]} 15. Ne2 {[%clk 0:04:24.5]}
15... Nb4 {[%clk 0:03:43.1]} 16. Nc1 {[%clk 0:04:23.6]} 16... Nxd3 {[%clk
0:03:40.6]} 17. Nxd3 {[%clk 0:04:21.8]} 17... Bf5 {[%clk 0:03:39]} 18. g4 {[%clk
0:04:16.2]} 18... Bxd3 {[%clk 0:03:33.6]} 19. Rxd3 {[%clk 0:04:14.2]} 19... Rac8
{[%clk 0:03:11.8]} 20. gxh5 {[%clk 0:04:09]} 20... b4 {[%clk 0:02:58.5]} 21.
hxg6 {[%clk 0:04:05.4]} 21... Rc7 {[%clk 0:02:25.3]} 22. h5 {[%clk 0:04:02.8]}
22... fxg6 {[%clk 0:02:02.4]} 23. hxg6 {[%clk 0:04:00]} 23... Qa4 {[%clk
0:01:52.2]} 24. Qh2 {[%clk 0:03:57.6]} 24... Bf6 {[%clk 0:01:36.9]} 25. Bg5
{[%clk 0:03:41.7]} 25... Rxc2 {[%clk 0:01:25.8]} 26. Qh7# {[%clk 0:03:38.4]} 1-0